bitfinex-derivatives/quotes_SOLF0:USTF0_20250817
["timestamp","ask_amount","ask_price","bid_price","bid_amount"]
[1755456216129,11.52218014,193.09,193.08,0.034389]
[1755456216331,14.4978396,193.09,193.08,0.034389]
[1755456218534,14.48699617,193.09,193.08,0.034389]
[1755456221636,9.8005929,193.09,193.08,0.034389]
[1755456221840,14.50614678,193.09,193.08,0.034389]
[1755456222241,8.50612585,193.09,193.08,0.034389]
[1755456222440,14.50605457,193.09,193.08,0.034389]
[1755456224839,13.21154982,193.09,193.08,0.034389]
[1755456225040,14.50606653,193.09,193.08,0.034389]
[1755456227937,14.50292546,193.09,193.08,0.034389]
[1755456228839,2.84,193.08,192.99,3.05]
[1755456229040,1.68119241,193.05,192.99,3.05]
[1755456229239,2.84,193.03,192.99,3.05]
[1755456229442,2.84,193.02,192.99,3.05]
[1755456230044,2.87492265,193.02,192.99,3.05]
[1755456232249,2.84,193.01,192.99,3.05]
[1755456233733,2.84,193.01,192.93,125.8]
[1755456233734,3.84511709,193.0,192.93,1.68119241]
[1755456233938,2.84,192.98,192.94,3.05]
[1755456234134,2.84,192.97,192.94,3.05]
[1755456234838,0.03304187,192.97,192.94,3.05]
[1755456237940,2.87304187,192.97,192.94,3.05]
[1755456239651,0.03304187,192.97,192.96,3.05]
[1755456245553,2.87304187,192.97,192.96,3.05]
[1755456276562,7.589732,192.97,192.96,3.05]
[1755456276762,11.43085996,192.97,192.96,3.05]
[1755456277667,8.59085996,192.97,192.93,4.71119241]
[1755456277867,2.91,192.95,192.94,3.03]
[1755456292774,0.03304187,192.97,192.93,1.68119241]
[1755456293075,11.3929499,192.96,192.93,1.68119241]
[1755456293279,8.54239147,192.95,192.91,2.78]
[1755456293475,8.54147152,192.94,192.91,1.68119241]
[1755456293679,2.85,192.93,192.92,2.78]
[1755456294779,2.85,192.94,192.92,2.78]
[1755456297077,2.85,192.96,192.92,2.78]
[1755456297277,2.85,192.94,192.92,4.46119241]
[1755456298080,2.85,192.94,192.93,2.78]
[1755456301581,0.03304187,192.97,192.93,2.78]
[1755456301782,0.03304187,192.97,192.96,4.46119241]
[1755456301984,11.41203329,192.97,192.96,1.68119241]
[1755456302187,11.37899142,192.97,192.96,1.68119241]
[1755456302487,11.37900093,192.97,192.96,1.68119241]
[1755456302986,11.30398393,192.97,192.96,1.68119241]
[1755456303283,2.85,192.96,192.94,1.68119241]
[1755456303487,2.85,192.96,192.94,4.46119241]
[1755456305783,2.85,192.96,192.94,1.68119241]
[1755456305988,2.85,192.96,192.95,2.78]
[1755456306191,6.68448809,192.96,192.95,2.78]
[1755456307897,6.68448809,192.96,192.95,4.46119241]
[1755456312804,6.68448809,192.96,192.95,2.78]
[1755456323314,2.92,192.95,192.94,2.97]
[1755456324115,2.92,192.94,192.9,2.97]
[1755456324315,2.92,192.92,192.9,2.97]
[1755456324608,1.68119241,192.98,192.91,4.65119241]
[1755456324811,6.75233276,192.97,192.95,1.68119241]
[1755456325115,2.92,192.97,192.96,2.97]
[1755456325315,11.43280176,192.97,192.96,2.97]
[1755456325716,8.51280176,192.97,192.96,2.97]
[1755456326813,8.51280176,192.97,192.96,8.1493]
[1755456327006,8.51280176,192.97,192.96,5.1793]
[1755456327212,8.51280176,192.97,192.96,8.1493]
[1755456328111,3.83288454,192.97,192.96,8.1493]
[1755456328310,3.83288454,192.97,192.96,2.97]
[1755456328813,6.75288454,192.97,192.96,2.97]
[1755456330116,2.92,192.96,192.93,4.65119241]
[1755456330319,2.92,192.94,192.93,4.65119241]
[1755456331017,2.92,192.97,192.93,1.68119241]
[1755456331218,11.34744543,192.96,192.94,2.97]
[1755456331420,2.92,192.96,192.94,2.97]
[1755456333125,2.92,192.96,192.95,2.97]
[1755456333420,11.34686388,192.96,192.95,2.97]
[1755456336223,11.34749235,192.96,192.95,2.97]
[1755456339025,6.74412522,192.96,192.95,2.97]
[1755456339324,11.34856964,192.96,192.95,2.97]
[1755456339634,2.92,192.95,192.93,2.97]
[1755456340726,2.92,192.95,192.93,5.1801]
[1755456341024,2.92,192.95,192.94,2.97]
[1755456342531,0.03627244,192.98,192.94,2.97]
[1755456342825,2.92,193.02,192.98,2.97]
[1755456343032,8.46432991,193.01,193.0,5.60105181]
[1755456343237,3.8266016,193.01,193.0,5.60105181]
[1755456343622,5.79992682,193.09,193.0,5.60105181]
[1755456343826,2.92,193.01,193.0,5.60105181]
[1755456353136,2.99,193.02,193.0,5.60105181]
[1755456353333,2.99,193.02,193.01,2.78]
[1755456356451,2.99,193.02,193.01,4.46218769]
[1755456358541,2.99,193.02,193.01,9.64018769]
[1755456360848,2.99,193.02,193.01,4.46218769]
[1755456361049,2.99,193.02,193.01,1.68218769]
[1755456361352,4.67218769,193.02,193.0,0.03711238]
[1755456361542,2.99,193.0,192.95,1.68218769]
[1755456361742,4.67218769,192.98,192.92,1.68218769]
[1755456361947,2.99,192.97,192.92,1.68218769]
[1755456362348,2.99,192.97,192.92,4.46218769]
[1755456362849,0.03344753,192.96,192.92,4.46218769]
[1755456363049,2.99,192.95,192.92,4.46218769]
[1755456363351,2.99,192.95,192.9,4.46218769]
[1755456363643,2.99,192.95,192.9,1.68218769]
[1755456364145,2.99,192.95,192.9,4.46218769]
[1755456364348,2.99,192.95,192.9,2.78]
[1755456364652,2.99,192.95,192.89,5.181]
[1755456364850,2.99,192.95,192.91,2.78]
[1755456368251,2.99,192.95,192.92,2.78]
[1755456369852,2.99,192.95,192.93,2.78]
[1755456370240,2.99,192.95,192.86,47.14142113]
[1755456370241,2.99,192.95,192.91,5.1806]
[1755456370446,2.99,192.95,192.92,2.78]
[1755456371347,0.03344753,192.96,192.93,2.63199859]
[1755456371542,0.03344753,192.96,192.94,2.78]
[1755456371743,0.03344753,192.96,192.95,5.1796]
[1755456371947,0.03344753,192.96,192.95,7.9596]
[1755456373149,3.02344753,192.96,192.95,2.78]
[1755456373748,3.02344753,192.96,192.95,7.9596]
[1755456374051,0.03344753,192.96,192.95,7.9596]
[1755456375153,2.99,193.06,192.98,2.78]
[1755456375357,2.99,193.04,192.98,2.78]
[1755456375554,2.99,193.02,192.98,2.78]
[1755456375759,2.99,193.02,192.99,2.78]
[1755456376453,2.99,193.02,192.99,2.81478408]
[1755456376955,2.99,193.02,193.0,2.78]
[1755456377357,2.99,193.01,193.0,2.63199859]
[1755456377952,2.99,193.01,193.0,5.46199859]
[1755456391166,2.99,193.01,192.99,0.03478408]
[1755456391366,3.81638491,193.0,192.99,0.03478408]
[1755456391562,6.67638491,193.0,192.99,0.03478408]
[1755456391965,6.67638491,193.0,192.92,2.83]
[1755456391966,2.86,192.99,192.92,2.83]
[1755456393275,0.03287157,192.97,192.92,2.83]
[1755456393475,2.86,192.96,192.92,2.83]
[1755456393973,2.86,192.96,192.92,5.1803]
[1755456394176,2.86,192.99,192.95,2.83]
[1755456394373,2.86,192.99,192.98,5.46199859]
[1755456395777,2.86,192.99,192.88,2.83]
[1755456395978,3.81421669,192.98,192.92,2.83]
[1755456396169,3.53395023,193.04,192.92,2.86425894]
[1755456396372,2.86,193.02,192.92,2.86425894]
[1755456396574,2.86,193.0,192.92,2.83]
[1755456396775,2.86,192.98,192.92,2.83]
[1755456397982,2.86,192.98,192.93,0.03269558]
[1755456398174,2.86,192.98,192.94,2.83]
[1755456402581,2.86,192.98,192.95,2.83]
[1755456402878,2.86,192.97,192.95,2.83]
[1755456403575,2.86,192.96,192.95,2.83]
[1755456405880,2.86,193.03,192.94,0.03424378]
[1755456406082,2.86,193.01,192.94,0.03424378]
[1755456406283,2.86,192.99,192.94,2.86424378]
[1755456406478,2.86,192.97,192.95,2.83]
[1755456409179,2.86,192.97,192.96,2.87]
[1755456410282,2.86,192.97,192.94,0.03424378]
[1755456411389,3.81659065,192.96,192.94,0.03424378]
[1755456411588,2.77,192.95,192.94,0.03424378]
[1755456413889,2.77,192.95,192.94,2.90424378]
[1755456421896,2.77,192.97,192.94,2.90424378]
[1755456422099,3.53395023,193.04,192.94,2.90424378]
[1755456422297,2.77,192.96,192.94,2.90424378]
[1755456423300,2.77,192.95,192.94,2.90424378]
[1755456424307,2.77,192.95,192.94,0.03424378]
[1755456426203,2.77,192.95,192.94,2.90424378]
[1755456428208,2.77,192.95,192.9,0.35324237]
[1755456428403,0.03280335,192.96,192.9,0.35324237]
[1755456428606,2.77,192.93,192.9,0.35324237]
[1755456428908,2.77,192.92,192.9,0.35324237]
[1755456430204,2.77,192.92,192.91,2.58]
[1755456430702,2.77,192.92,192.9,2.93324237]
[1755456430898,2.77,192.95,192.91,2.58]
[1755456431102,2.77,192.93,192.92,2.58]
[1755456432505,6.59889406,192.93,192.92,2.58]
[1755456434013,2.80273108,192.94,192.92,2.58]
[1755456434219,0.03273108,192.94,192.91,2.58]
[1755456434513,2.77,192.93,192.91,7.7604]
[1755456434707,2.77,192.93,192.89,2.63199859]
[1755456434909,2.77,192.93,192.89,7.81309859]
[1755456435109,2.77,192.93,192.91,2.58]
[1755456435911,2.77,192.92,192.9,5.1809]
[1755456436411,2.77,192.92,192.91,2.58]
[1755456441410,0.03273108,192.94,192.9,5.1809]
[1755456441613,2.83,192.91,192.89,10.39319859]
[1755456443117,0.03273108,192.94,192.89,10.39319859]
[1755456443317,2.83,192.9,192.89,10.39319859]
[1755456445119,2.83,192.9,192.89,2.58]
[1755456445315,2.83,192.9,192.89,5.21199859]
[1755456446716,2.83,192.93,192.89,2.63199859]
[1755456447016,2.83,192.93,192.89,5.21199859]
[1755456448521,3.83794387,192.92,192.89,5.21199859]
[1755456448719,2.83,192.91,192.89,2.63199859]
[1755456448919,2.83,192.91,192.9,2.58]
[1755456449622,2.83,192.91,192.89,2.63199859]
[1755456449822,2.83,192.91,192.89,5.21199859]
[1755456452318,2.86273108,192.94,192.9,1.68398717]
[1755456452525,6.72090014,192.93,192.92,1.68398717]
[1755456453929,6.72113563,192.93,192.92,1.68398717]
[1755456454422,3.89113563,192.93,192.9,5.21106427]
[1755456454627,2.83,192.91,192.9,5.21106427]
[1755456456525,2.83,192.91,192.9,2.63106427]
[1755456459138,2.83,192.9,192.87,2.63106427]
[1755456459341,2.83,192.9,192.87,5.21106427]
[1755456459536,2.83,192.9,192.88,2.58]
[1755456459940,2.86651179,192.9,192.88,2.58]
[1755456461940,2.86651179,192.9,192.89,5.1812]
[1755456462239,2.83,192.94,192.89,2.58]
[1755456462441,3.8932912,192.93,192.89,2.58]
[1755456462638,2.83,192.94,192.93,7.7601]
[1755456462839,6.72350247,192.94,192.93,7.7601]
[1755456463247,6.72350247,192.94,192.93,5.1801]
[1755456463637,6.72350247,192.94,192.93,7.81116427]
[1755456464447,6.72350247,192.94,192.93,10.39116427]
[1755456468548,18.18106427,193.06,192.93,10.39116427]
[1755456468549,350.81106427,193.08,192.94,3.02]
[1755456468748,8.12567369,193.06,192.97,2.63106427]
[1755456469049,8.12567369,193.05,192.97,5.65106427]
[1755456469240,5.4801814,193.04,192.97,5.65106427]
[1755456469445,5.4801814,193.03,192.97,5.65106427]
[1755456469640,5.4801814,193.02,192.97,5.65106427]
[1755456469846,1.29501777,193.01,192.97,5.65106427]
[1755456470046,350.81106427,193.08,192.98,0.03695559]
[1755456470243,8.12219268,193.06,192.98,0.03695559]
[1755456470439,2.77,193.04,192.98,0.03695559]
[1755456470748,2.77,193.02,192.98,3.05695559]
[1755456471545,2.77,193.02,192.99,3.02]
[1755456471940,2.77,193.06,193.0,2.63106427]
[1755456472145,2.77,193.06,193.01,3.02]
[1755456472945,2.77,193.06,193.0,2.63106427]
[1755456473252,2.77,193.06,193.0,5.65106427]
[1755456473451,2.77,193.06,193.02,3.02]
[1755456473649,2.77,193.06,193.03,3.02]
[1755456473845,2.77,193.06,193.04,3.02]
[1755456474047,2.77,193.06,193.04,8.197]
[1755456474353,2.77,193.06,193.05,3.02]
[1755456475446,2.77,193.06,193.03,0.03692792]
[1755456476753,2.77,193.06,193.03,3.05692792]
[1755456480753,2.77,193.05,193.04,3.02]
[1755456481455,2.77,193.06,193.04,3.02]
[1755456482350,2.77,193.06,193.03,0.03692792]
[1755456482651,2.77,193.06,193.03,3.05692792]
[1755456482852,2.77,193.06,193.04,3.02]
[1755456484761,2.77,193.06,193.05,3.02]
[1755456485755,2.77,193.06,193.03,0.03692792]
[1755456486758,2.77,193.06,193.03,3.05692792]
[1755456488159,2.77,193.06,193.03,0.03692792]
[1755456488360,2.77,193.06,193.04,3.02]
[1755456489464,2.77,193.06,193.03,0.03692792]
[1755456489663,2.77,193.06,193.03,3.05692792]
[1755456492764,2.77,193.1,193.03,0.03692792]
[1755456492965,2.77,193.08,193.03,0.03692792]
[1755456493160,2.77,193.06,193.03,0.03692792]
[1755456497768,2.77,193.06,193.03,2.89692792]
[1755456498170,2.77,193.06,193.03,0.03692792]
[1755456499567,2.89,193.04,193.03,0.03692792]
[1755456501174,6.70717454,193.04,193.03,0.03692792]
[1755456501373,3.81717454,193.04,193.03,0.03692792]
[1755456501567,6.70717454,193.04,193.03,0.03692792]
[1755456501974,6.70717454,193.04,193.03,2.89692792]
[1755456503377,2.89,193.04,193.03,2.89692792]
[1755456505180,6.71128384,193.04,193.03,2.89692792]
[1755456505777,6.71128384,193.04,193.03,0.03692792]
[1755456506780,2.89,193.03,192.94,2.86]
[1755456507079,2.89,193.01,192.94,2.86]
[1755456507280,2.89,192.99,192.94,2.86]
[1755456508179,2.89,192.97,192.94,2.86]
[1755456509080,0.03507146,192.98,192.94,2.86]
[1755456509278,2.89,192.96,192.94,2.86]
[1755456511585,2.89,192.97,192.94,2.86]
[1755456511784,0.03507146,192.98,192.94,2.86]
[1755456512287,0.03507146,192.98,192.96,2.86]
[1755456512786,0.03507146,192.98,192.96,8.0391]
[1755456512987,0.03507146,192.98,192.96,2.86]
[1755456513382,0.03507146,192.98,192.96,8.0392]
[1755456513690,0.03507146,192.98,192.97,2.86]
[1755456515989,2.92507146,192.98,192.97,2.86]
[1755456516488,2.92507146,192.98,192.93,5.1801]
[1755456516689,0.03507146,192.98,192.96,2.86]
[1755456516892,2.92507146,192.98,192.96,2.86]
[1755456517190,2.89,192.97,192.96,2.86]
[1755456520094,0.03507146,192.98,192.96,2.86]
[1755456520493,0.03507146,192.98,192.96,8.0391]
[1755456520795,0.03507146,192.98,192.97,2.86]
[1755456521296,0.03507146,192.98,192.97,8.039]
[1755456521488,0.03507146,192.98,192.96,2.63106427]
[1755456521794,0.03507146,192.98,192.97,2.86]
[1755456532308,3.01507146,192.98,192.97,2.86]
[1755456536703,3.01507146,192.98,192.97,8.039]
[1755456538308,3.01507146,192.98,192.97,9.72203549]
[1755456539808,3.01507146,192.98,192.97,4.54303549]
[1755456540206,0.03507146,192.98,192.97,9.72203549]
[1755456541614,2.98,193.03,193.02,8.0576]
[1755456541809,2.98,193.03,193.02,9.74063549]
[1755456542009,68.80236268,193.11,193.02,9.74063549]
[1755456542215,2.98,193.04,193.03,2.88]
[1755456542615,6.81171013,193.04,193.03,8.0574]
[1755456542915,2.98,193.06,193.03,2.88]
[1755456543117,2.98,193.1,193.03,2.88]
[1755456543308,68.80236268,193.11,193.06,1.68303549]
[1755456543309,3.83378561,193.09,193.06,1.68303549]
[1755456543505,2.98,193.07,193.06,4.56303549]
[1755456543714,2.98,193.09,193.06,4.56303549]
[1755456544015,6.81237557,193.08,193.07,2.88]
[1755456545413,0.90156608,193.14,193.07,2.88]
[1755456545604,2.98,193.12,193.07,5.1762]
[1755456545808,2.98,193.1,193.06,0.03504918]
[1755456546114,2.98,193.08,193.04,2.88]
[1755456546308,2.98,193.08,193.03,2.6272561]
[1755456546309,2.98,193.08,193.05,2.88]
[1755456547018,2.98,193.08,193.06,2.88]
[1755456549423,2.98,193.08,193.05,0.0343798]
[1755456550224,2.98,193.08,193.05,2.9143798]
[1755456551619,2.98,193.08,193.05,0.0343798]
[1755456552426,2.98,193.06,193.05,0.0343798]
[1755456552626,2.98,193.06,193.05,2.9143798]
[1755456553921,2.98,193.06,193.05,0.0343798]
[1755456554922,2.98,193.06,193.05,2.9143798]
[1755456555426,2.98,193.06,193.05,0.0343798]
[1755456555620,2.98,193.06,193.05,2.9143798]
[1755456556129,2.98,193.06,193.05,0.0343798]
[1755456558328,2.98,193.06,193.05,2.8343798]
[1755456563928,2.84,193.05,192.97,2.8]
[1755456564128,3.1472561,193.06,192.97,2.8]
[1755456564129,3.82590348,193.04,192.97,2.8]
[1755456564436,2.84,193.02,192.97,2.8]
[1755456564633,2.84,193.02,192.98,2.8]
[1755456565332,2.87554748,193.02,192.98,2.8]
[1755456567133,2.87554748,193.02,192.95,5.1795]
[1755456567333,2.87554748,193.02,192.99,2.8]
[1755456573735,3.83088416,193.01,192.94,5.1798]
[1755456573942,2.84,193.0,192.95,2.8]
[1755456579242,2.84,193.01,192.95,5.4272561]
[1755456579546,2.84,193.01,192.93,2.8]
[1755456579939,3.83055815,193.0,192.93,2.8]
[1755456580240,2.84,192.98,192.93,2.8]
[1755456580444,2.84,192.98,192.94,2.8]
[1755456580645,2.84,192.98,192.91,2.8]
[1755456581236,2.84,192.95,192.91,2.8]
[1755456583853,2.84,192.95,192.88,2.8]
[1755456584662,2.84,192.95,192.89,2.8]
[1755456584963,2.87669971,192.96,192.91,2.8]
[1755456585853,2.84,192.95,192.91,2.8]
[1755456586254,2.84,192.95,192.92,5.1803]
[1755456586460,2.84,192.95,192.93,2.8]
[1755456587860,0.03669971,192.96,192.92,5.1803]
[1755456588062,2.99,192.95,192.93,2.94]
[1755456589461,2.99,192.95,192.93,8.1201]
[1755456589765,0.03669971,192.96,192.87,47.66815223]
[1755456589766,0.03669971,192.96,192.94,2.94]
[1755456589967,3.02669971,192.96,192.91,7.8076561]
[1755456590266,3.02669971,192.96,192.94,2.94]
[1755456591465,3.02669971,192.96,192.95,2.94]
[1755456594265,3.02669971,192.96,192.95,4.62318138]
[1755456599266,3.02669971,192.96,192.93,4.62318138]
[1755456599668,3.02669971,192.96,192.94,2.94]
[1755456600069,3.02669971,192.96,192.93,1.68318138]
[1755456600264,3.02669971,192.96,192.95,2.94]
[1755456600974,0.03669971,192.96,192.95,2.94]
[1755456601173,3.02669971,192.96,192.95,2.94]
[1755456602475,0.03669971,192.96,192.95,4.62318138]
[1755456603475,3.02669971,192.96,192.95,4.62318138]
[1755456605176,0.03669971,192.96,192.95,4.62318138]
[1755456605671,0.03669971,192.96,192.95,9.80278138]
[1755456605874,2.99,193.06,192.96,2.94]
[1755456606077,2.99,193.04,193.03,2.94]
[1755456606269,2.99,193.07,193.05,2.94]
[1755456606473,2.99,193.07,193.06,4.62318138]
[1755456606674,3.83942207,193.07,193.04,1.68318138]
[1755456606874,6.82974149,193.06,193.02,1.68318138]
[1755456607076,2.99,193.04,193.02,1.68318138]
[1755456607476,2.99,193.04,193.02,1.7181954]
[1755456607881,2.99,193.04,193.02,4.6581954]
[1755456608377,2.99,193.04,193.02,2.97501402]
[1755456611180,2.62856844,193.12,193.02,0.03501402]
[1755456611181,3.83971781,193.03,193.02,0.03501402]
[1755456611385,6.82971781,193.03,193.02,0.03501402]
[1755456611680,6.82965572,193.03,193.02,0.03501402]
[1755456613084,2.99,193.03,193.02,0.03501402]
[1755456615282,6.82855632,193.03,193.02,0.03501402]
[1755456618675,15.44478876,193.03,192.95,2.75]
[1755456618880,2.87,193.01,192.95,2.75]
[1755456619081,2.87,192.99,192.95,2.75]
[1755456620481,2.90815413,192.99,192.95,2.75]
[1755456620681,0.03815413,192.99,192.95,2.75]
[1755456620983,2.87,192.98,192.95,2.75]
[1755456622378,2.90815413,192.99,192.95,2.75]
[1755456622583,2.87,192.98,192.95,2.75]
[1755456622893,0.03815413,192.99,192.95,2.75]
[1755456623193,2.87,192.98,192.95,2.75]
[1755456623494,0.03815413,192.99,192.95,2.75]
[1755456623692,0.03815413,192.99,192.96,2.75]
[1755456624188,2.87,193.01,192.94,2.62856844]
[1755456624386,0.03329797,192.99,192.97,2.75]
[1755456624692,0.03329797,192.99,192.97,7.9288]
[1755456624991,2.87,193.0,192.98,2.75]
[1755456625193,2.90409099,193.0,192.98,2.75]
[1755456626786,2.90409099,193.0,192.94,2.62856844]
[1755456626987,2.90409099,193.0,192.95,2.75]
[1755456629981,0.03409099,193.0,192.98,2.75]
[1755456630387,2.87,193.02,192.98,2.75]
[1755456630795,0.03632421,193.01,192.98,2.75]
[1755456631190,0.03632421,193.01,192.98,5.1787]
[1755456631490,0.03632421,193.01,192.99,2.75]
[1755456632789,0.03632421,193.01,193.0,2.62856844]
[1755456633093,0.03632421,193.01,193.0,5.37856844]
[1755456633294,2.87,193.04,193.0,7.80656844]
[1755456633495,0.03625271,193.02,193.01,2.75]
[1755456636698,348.02,193.14,193.0,7.80656844]
[1755456636699,2.87,193.13,193.02,2.75]
[1755456636883,2.87,193.11,193.02,2.75]
[1755456637082,2.87,193.09,193.02,2.75]
[1755456637285,2.87,193.07,193.02,2.75]
[1755456637986,2.87,193.07,193.03,0.03275922]
[1755456638193,2.87,193.07,193.04,2.75]
[1755456638495,2.87,193.13,193.03,0.03275922]
[1755456638688,2.87,193.11,193.03,0.03275922]
[1755456638899,2.87,193.09,193.03,2.78275922]
[1755456639189,2.87,193.07,193.04,2.75]
[1755456639695,2.87,193.07,193.01,5.1778]
[1755456639993,2.87,193.07,193.02,2.75]
[1755456640197,2.87,193.07,193.02,2.78525131]
[1755456641792,348.02,193.14,193.02,5.21295131]
[1755456642097,2.87,193.12,193.03,2.75]
[1755456642297,2.87,193.1,193.03,2.75]
[1755456642592,2.87,193.08,193.06,0.03280931]
[1755456642894,6.71397514,193.07,193.06,2.78280931]
[1755456643499,2.87,193.07,193.06,2.78280931]
[1755456644192,2.87,193.13,193.06,2.78280931]
[1755456644399,3.84294773,193.12,193.06,7.83777775]
[1755456644600,6.71294773,193.11,193.07,2.75]
[1755456644901,6.71294773,193.1,193.07,2.75]
[1755456645105,2.87,193.1,193.07,2.78419395]
[1755456645801,2.87,193.15,193.07,0.03419395]
[1755456646100,2.87,193.13,193.07,0.03419395]
[1755456646305,2.87,193.11,193.07,0.03419395]
[1755456646599,2.87,193.09,193.07,0.03419395]
[1755456646800,6.71190306,193.08,193.07,0.03419395]
[1755456653001,3.84190306,193.08,193.07,2.90419395]
[1755456653199,2.88,193.13,193.07,2.90419395]
[1755456653405,2.88,193.11,193.07,2.90419395]
[1755456653703,6.72261652,193.1,193.07,2.90419395]
[1755456653912,2.88,193.1,193.07,2.90419395]
[1755456654708,2.88,193.17,193.07,2.90419395]
[1755456654902,9.29959467,193.16,193.07,2.90419395]
[1755456655108,2.88,193.14,193.07,2.90419395]
[1755456655310,2.88,193.12,193.07,2.90419395]
[1755456655511,2.88,193.1,193.07,2.90419395]
[1755456656404,2.88,193.12,193.08,2.87]
[1755456656610,2.88,193.17,193.08,2.87]
[1755456656809,2.88,193.15,193.08,2.87]
[1755456657011,3.84031932,193.14,193.08,2.87]
[1755456657212,2.88,193.12,193.11,0.03465543]
[1755456657413,6.72031932,193.12,193.11,0.03465543]
[1755456657606,6.72031932,193.12,193.11,2.90465543]
[1755456659207,6.72031932,193.12,193.11,0.03465543]
[1755456661014,2.88,193.11,193.04,2.87]
[1755456661216,2.88,193.09,193.04,2.87]
[1755456662126,3.83257603,193.08,193.04,2.87]
[1755456662426,2.88,193.07,193.04,2.87]
[1755456662622,2.88,193.07,193.01,2.87]
[1755456665324,2.88,193.07,193.01,8.0479]
[1755456665626,0.03296344,193.08,193.02,2.87]
[1755456665828,2.88,193.06,193.02,2.87]
[1755456667333,2.88,193.06,193.03,2.87]
[1755456668136,2.88,193.06,193.04,2.87]
[1755456668631,2.88,193.05,193.04,2.87]
[1755456671835,2.88,193.05,193.02,2.87]
[1755456672032,2.88,193.05,193.03,2.87]
[1755456674937,2.88,193.03,192.99,2.87]
[1755456675141,2.88,193.03,193.0,2.87]
[1755456675332,2.88,193.08,192.98,2.87]
[1755456675538,8.42849526,193.09,192.98,2.87]
[1755456675539,2.88,193.01,192.98,2.87]
[1755456676440,2.88,193.01,192.99,2.87]
[1755456677336,6.72657353,193.0,192.99,2.87]
[1755456677536,2.88,193.0,192.99,2.87]
[1755456678136,6.78583151,193.02,192.99,2.87]
[1755456678337,3.84583151,193.01,192.99,2.87]
[1755456678539,2.94,193.01,192.99,2.87]
[1755456679236,2.97669859,193.03,192.96,2.99]
[1755456679541,2.97669859,193.03,192.99,2.99]
[1755456680041,2.94,193.03,192.99,2.99]
[1755456680334,2.94,193.02,193.0,2.99]
[1755456680541,0.03351318,193.03,193.0,2.99]
[1755456680740,2.94,193.01,193.0,2.99]
[1755456684044,0.03351318,193.03,193.0,2.99]
[1755456684247,2.97351318,193.03,193.0,2.99]
[1755456684747,2.94,193.02,193.0,2.99]
[1755456684939,0.03351318,193.03,193.0,2.99]
[1755456685145,2.94,193.01,192.98,7.80726844]
[1755456685747,2.94,193.01,192.99,2.99]
[1755456686050,2.94,193.02,192.99,2.99]
[1755456686348,3.84269425,193.01,192.99,2.99]
[1755456686543,2.94,193.0,192.99,2.99]
[1755456693256,0.03351318,193.03,192.99,2.99]
[1755456693453,2.94,193.02,192.99,2.99]
[1755456694755,2.94,193.02,193.0,2.99]
[1755456695156,2.94,193.02,192.99,2.99]
[1755456695655,2.94,193.02,192.96,2.99]
[1755456696451,0.03660534,193.01,192.96,2.99]
[1755456696753,2.94,192.99,192.97,2.99]
[1755456696950,0.03660534,193.01,192.99,2.99]
[1755456697155,2.94,193.04,193.0,2.99]
[1755456697352,2.94,193.04,193.02,2.99]
[1755456697556,2.94,193.03,193.01,7.80646844]
[1755456698156,2.94,193.03,193.02,2.99]
[1755456699355,2.94,193.05,193.02,2.99]